bitfinex-derivatives/quotes_ETHF0:USTF0_20240910
["timestamp","ask_amount","ask_price","bid_price","bid_amount"]
[1725976015815,0.42718,2340.8,2340.6,0.4272]
[1725976016312,1.0679,2341.0,2340.1,4.76823]
[1725976016506,1.0679,2341.0,2340.6,0.42721]
[1725976016507,0.42719,2340.8,2340.6,0.42721]
[1725976016922,0.4272,2340.7,2340.5,0.42722]
[1725976017220,10.88722505,2340.9,2340.0,0.3686]
[1725976017514,0.3988,2341.3,2340.4,0.42724]
[1725976017515,0.42723,2340.6,2340.4,0.42724]
[1725976017714,10.88722505,2341.2,2340.1,1.06827]
[1725976017715,1.06793,2340.9,2340.1,1.06827]
[1725976017920,0.42723,2340.6,2340.5,0.42723]
[1725976018312,0.42719,2340.8,2340.6,0.4272]
[1725976018524,1.06785,2341.1,2340.5,0.42723]
[1725976018525,1.06782,2341.1,2340.5,0.42723]
[1725976018714,0.42721,2340.6,2340.5,0.42723]
[1725976019118,0.42721,2340.7,2340.5,0.42723]
[1725976019516,0.42721,2340.6,2340.5,0.42723]
[1725976019823,0.42721,2340.7,2340.5,0.42723]
[1725976020020,0.42721,2340.6,2340.5,0.42723]
[1725976020523,0.4272,2340.7,2340.2,1.06823]
[1725976020713,0.42711,2341.2,2341.0,0.42713]
[1725976020910,0.42711,2341.2,2341.0,0.42714]
[1725976021123,0.42711,2341.2,2340.6,3.28]
[1725976021124,0.3725,2341.5,2341.2,0.42711]
[1725976021417,0.3725,2341.5,2340.6,3.28]
[1725976021418,4.173,2341.7,2340.9,4.34788]
[1725976021619,0.4005,2342.0,2341.5,0.42704]
[1725976021620,0.42701,2341.8,2341.5,0.42704]
[1725976021809,0.42707,2341.4,2340.9,3.28]
[1725976022024,0.42711,2341.2,2340.9,0.42715]
[1725976022415,0.4271,2341.3,2340.7,3.6571]
[1725976022719,1.06763,2341.5,2340.7,3.6571]
[1725976022921,1.06763,2341.5,2340.6,4.082]
[1725976022922,0.3816,2341.4,2340.8,0.42716]
[1725976023226,0.42712,2341.2,2340.8,0.42716]
[1725976023709,10.81816755,2341.4,2341.0,3.28]
[1725976023917,1.18777,2342.0,2341.3,3.28]
[1725976024129,0.7608,2342.0,2341.3,3.28]
[1725976024423,10.67472317,2341.9,2341.3,3.28]
[1725976024615,0.427,2341.8,2341.4,0.42705]
[1725976024823,0.427,2341.8,2341.3,3.28]
[1725976025115,10.67472317,2341.9,2341.1,1.1226]
[1725976025422,0.42706,2341.5,2341.1,0.3766]
[1725976025626,12.11391317,2341.9,2341.2,0.42709]
[1725976025925,0.42703,2341.6,2341.3,0.42708]
[1725976026321,0.42706,2341.5,2341.1,0.80371]
[1725976026522,0.42703,2341.7,2341.3,0.42709]
[1725976026818,11.10171317,2341.9,2341.1,0.3766]
[1725976027023,11.10171317,2341.9,2341.3,3.28]
[1725976027024,10.67472317,2341.9,2341.3,3.28]
[1725976027319,0.3816,2342.0,2341.4,0.4032]
[1725976027524,0.3816,2342.0,2341.9,0.42698]
[1725976027728,0.42693,2342.2,2341.8,0.42699]
[1725976028018,0.42693,2342.2,2341.4,0.4032]
[1725976028019,10.71265496,2342.2,2341.4,0.4032]
[1725976028225,0.42698,2341.9,2341.5,0.42704]
[1725976028819,1.06731,2342.2,2341.4,0.4032]
[1725976029016,0.42698,2341.9,2341.4,0.4032]
[1725976029212,0.42698,2341.9,2341.5,0.42704]
[1725976029416,0.427,2341.8,2341.4,0.42706]
[1725976029625,0.81201,2341.8,2341.4,0.42706]
[1725976029919,0.812,2341.8,2341.4,0.42706]
[1725976030122,0.812,2341.8,2341.2,4.082]
[1725976030123,0.812,2341.8,2341.5,0.42704]
[1725976030322,0.385,2341.8,2341.3,3.28]
[1725976030527,0.385,2341.8,2341.5,0.42704]
[1725976030714,0.81201,2341.8,2341.4,0.42706]
[1725976031129,0.385,2341.8,2341.3,3.28]
[1725976031424,0.385,2341.8,2341.5,0.42704]
[1725976031819,0.385,2341.8,2341.6,0.42703]
[1725976032224,0.385,2341.8,2341.3,3.28]
[1725976032520,0.385,2341.8,2341.5,0.42703]
[1725976033122,0.42702,2341.7,2341.4,0.42706]
[1725976033420,0.385,2341.8,2341.3,0.42707]
[1725976033625,0.385,2341.8,2341.3,0.42708]
[1725976033626,0.42703,2341.6,2341.3,0.42708]
[1725976033817,0.385,2341.8,2341.3,0.42708]
[1725976034017,1.06754,2341.7,2341.1,0.80372]
[1725976034221,1.06754,2341.7,2340.6,8.82834935]
[1725976034222,0.42713,2341.1,2340.6,4.45]
[1725976034529,5.24061,2341.6,2341.1,0.42711]
[1725976034731,5.24061,2341.6,2340.7,4.56410766]
[1725976034732,1.06761,2341.6,2340.7,4.56410766]
[1725976034934,0.42707,2341.4,2341.2,0.4271]
[1725976035223,0.42707,2341.4,2340.7,4.56410766]
[1725976035224,10.58883069,2341.6,2340.7,4.56410766]
[1725976035526,1.06759,2341.6,2340.7,3.28]
[1725976035828,0.4271,2341.3,2340.6,0.368]
[1725976036127,1.06768,2341.4,2340.6,0.368]
[1725976036326,1.06792,2340.9,2340.0,1.21071096]
[1725976036526,14.2187973,2341.2,2340.0,1.21071096]
[1725976036527,14.2187973,2341.2,2340.1,0.7774]
[1725976036716,0.42724,2340.5,2340.1,0.7774]
[1725976036919,0.4272,2340.7,2340.1,0.7774]
[1725976037226,0.42723,2340.5,2340.2,0.42728]
[1725976037423,0.3725,2340.6,2340.1,0.816]
[1725976037628,0.3725,2340.6,2340.2,0.42729]
[1725976037826,0.42723,2340.5,2340.1,0.816]
[1725976038033,0.42728,2340.3,2339.8,3.28]
[1725976038217,0.42729,2340.2,2339.8,0.42735]
[1725976038620,0.42731,2340.1,2339.7,0.42736]
[1725976038823,1.44059,2340.6,2339.8,0.42736]
[1725976038824,0.4273,2340.2,2339.8,0.42736]
[1725976039023,0.42731,2340.1,2339.7,0.42737]
[1725976039222,1.06814,2340.4,2339.6,0.3887]
[1725976039423,10.72466242,2340.0,2339.2,0.42746]
[1725976039636,0.42737,2339.8,2339.4,0.42743]
[1725976039830,0.3906,2339.9,2339.2,0.42746]
[1725976040025,10.91772553,2339.7,2339.0,0.4023]
[1725976040426,0.42743,2339.5,2339.0,0.4023]
[1725976040630,0.42745,2339.3,2339.0,0.4023]
[1725976040828,0.42745,2339.3,2338.4,0.4023]
[1725976040829,3.28,2339.3,2338.4,0.4023]
[1725976041133,3.28,2339.3,2338.5,0.4276]
[1725976041134,9.30451984,2339.2,2338.5,0.4276]
[1725976041331,9.30451984,2339.2,2338.4,0.4023]
[1725976041332,9.30451984,2339.2,2338.6,0.42757]
[1725976042627,8.87703984,2339.2,2338.6,0.42757]
[1725976042939,8.87703984,2339.2,2338.6,0.42758]
[1725976042940,9.30451984,2339.2,2338.6,0.42758]
[1725976043136,9.30451984,2339.2,2338.5,3.28]
[1725976043137,8.87703984,2339.2,2338.5,3.28]
[1725976043330,8.87703984,2339.2,2338.8,0.42753]
[1725976043536,8.87703984,2339.2,2338.8,0.42754]
[1725976043726,8.87703984,2339.2,2338.7,0.42755]
[1725976044133,9.30450984,2339.2,2338.6,0.42757]
[1725976044336,3.28,2339.0,2338.0,0.215]
[1725976044531,3.28,2338.5,2337.6,0.619]
[1725976044731,3.28,2338.5,2337.2,0.21380242]
[1725976044732,0.42771,2337.9,2337.4,0.42779]
[1725976044926,0.42771,2337.9,2337.2,0.21380242]
[1725976045140,3.28,2338.1,2337.2,0.21380242]
[1725976045141,0.42775,2337.7,2337.2,0.21380242]
[1725976045435,0.42774,2337.8,2337.2,0.21380242]
[1725976045637,0.42774,2337.8,2337.3,0.4278]
[1725976045831,0.42772,2337.9,2337.4,0.4278]
[1725976046030,0.42772,2337.9,2337.0,0.404]
[1725976046031,3.28,2338.3,2337.0,0.404]
[1725976046236,10.92292154,2337.8,2337.4,0.42779]
[1725976046439,0.4277,2338.0,2337.5,0.42778]
[1725976046626,0.7942,2338.4,2337.0,0.404]
[1725976046627,0.42771,2337.9,2337.4,0.42779]
[1725976046831,10.92292154,2337.9,2337.5,0.42777]
[1725976047132,0.7942,2338.4,2337.6,0.42776]
[1725976047133,0.42768,2338.1,2337.6,0.42776]
[1725976047331,10.80343709,2337.9,2337.5,0.42777]
[1725976047739,0.4277,2338.0,2337.5,0.42777]
[1725976048235,10.76888367,2337.8,2337.4,0.42779]
[1725976048439,10.76888367,2337.8,2337.0,0.404]
[1725976048440,0.42773,2337.8,2337.0,0.404]
[1725976048629,3.7,2337.9,2336.6,0.3926]
[1725976048827,4.76942,2337.6,2336.6,0.3926]
[1725976049138,0.42781,2337.4,2336.6,0.3926]
[1725976049436,10.76888367,2337.3,2336.9,0.42788]
[1725976049941,10.76888367,2337.3,2336.6,0.3926]
[1725976050235,10.91898932,2337.4,2337.0,0.42787]
[1725976050437,10.91898932,2337.4,2337.1,0.42784]
[1725976050627,10.91898932,2337.4,2336.6,0.3926]
[1725976050826,10.91898932,2337.4,2337.2,0.42782]
[1725976051133,10.91898932,2337.4,2337.1,0.42784]
[1725976051539,10.91898932,2337.4,2337.2,0.42783]
[1725976051837,10.91898932,2337.4,2336.6,0.3926]
[1725976052139,10.91898932,2337.4,2337.2,0.42783]
[1725976053038,10.91898932,2337.4,2337.3,0.42782]
[1725976053234,4.173,2337.9,2337.6,0.42775]
[1725976053432,1.06914,2338.2,2337.4,0.3942]
[1725976053634,10.8029672,2337.8,2337.5,0.42776]
[1725976053834,10.8029672,2337.9,2337.4,0.42779]
[1725976054035,0.42774,2337.8,2337.4,0.42779]
[1725976054341,10.80001322,2338.1,2337.5,0.42777]
[1725976054542,0.42773,2337.8,2337.4,0.42779]
[1725976054840,0.42773,2337.8,2337.0,4.082]
[1725976055039,0.42772,2337.9,2337.5,0.42777]
[1725976055240,0.42774,2337.7,2337.4,0.42778]
[1725976055441,0.42774,2337.7,2336.9,1.0697]
[1725976055442,11.6132137,2337.9,2337.0,1.06969]
[1725976055637,11.1854937,2337.9,2337.1,1.06961]
[1725976055833,11.1854937,2337.9,2337.4,0.42778]
[1725976056029,0.42775,2337.7,2337.4,0.4278]
[1725976056238,11.1854937,2337.9,2336.9,1.06973]
[1725976056443,0.42773,2337.8,2337.5,0.42777]
[1725976056646,11.6132137,2337.9,2337.6,0.42776]
[1725976057147,11.6132137,2337.9,2337.6,0.42775]
[1725976057343,11.1854937,2337.9,2337.5,0.42777]
[1725976057637,11.1854937,2337.9,2337.8,0.42773]
[1725976057852,4.173,2338.3,2337.0,7.782]
[1725976057853,4.173,2338.3,2337.3,3.7]
[1725976058034,4.5697,2338.6,2338.2,0.42764]
[1725976058240,0.42762,2338.4,2337.7,1.06937]
[1725976058550,0.42772,2337.9,2337.1,1.43951]
[1725976058737,5.2422,2338.1,2337.0,0.3907]
[1725976058938,0.42777,2337.6,2337.0,0.3907]
[1725976059146,0.42777,2337.6,2337.3,0.4278]
[1725976059632,0.3967,2337.8,2337.4,0.4278]
[1725976059834,0.3967,2337.8,2337.3,0.42781]
[1725976060145,0.42778,2337.6,2337.3,0.42781]
[1725976060343,0.42777,2337.6,2337.3,0.42781]
[1725976060536,0.42777,2337.6,2337.0,0.3907]
[1725976060537,12.1151265,2337.8,2337.0,0.3907]
[1725976060736,0.42779,2337.5,2337.0,0.3907]
[1725976060947,1.06937,2337.7,2337.3,0.42781]
[1725976061138,0.42776,2337.6,2337.4,0.4278]
[1725976061450,10.59159708,2337.6,2337.5,0.42777]
[1725976061638,0.82444,2337.8,2337.5,0.42777]
[1725976061838,0.3967,2337.8,2337.0,0.3907]
[1725976062038,0.42775,2337.7,2337.5,0.42778]
[1725976062441,0.82444,2337.8,2337.6,0.42776]
[1725976062640,0.3967,2337.8,2337.6,0.42776]
[1725976062840,0.3967,2337.8,2337.6,0.42775]
[1725976063049,0.3967,2337.8,2337.2,1.06959]
[1725976063050,0.3967,2337.8,2337.7,0.42774]
[1725976063836,0.3967,2337.8,2337.3,1.06952]
[1725976064147,0.3967,2337.8,2337.7,0.42774]
[1725976064445,0.3967,2337.8,2337.2,1.06959]
[1725976064446,0.42777,2337.6,2337.4,0.42779]
[1725976064745,0.42776,2337.7,2337.1,1.46822]
[1725976065047,0.3967,2337.8,2337.7,0.42774]
[1725976066350,0.42771,2337.9,2337.7,0.42774]
[1725976066547,0.42772,2337.9,2337.7,0.42774]
[1725976066751,10.86041125,2337.8,2337.7,0.42774]
[1725976067749,10.86041125,2337.8,2337.1,1.46823]
[1725976068044,11.28815125,2337.8,2337.6,0.42775]
[1725976068249,10.86041125,2337.8,2337.7,0.42774]
[1725976068440,10.86041125,2337.8,2337.1,1.46823]
[1725976068640,10.86041125,2337.8,2337.3,1.06955]
[1725976068841,10.86041125,2337.8,2337.7,0.42774]
[1725976069040,11.28814125,2337.8,2337.6,0.42775]
[1725976069244,11.28814125,2337.8,2337.3,1.06955]
[1725976069245,0.42778,2337.5,2337.3,0.42781]
[1725976069544,1.06932,2337.9,2337.0,0.3907]
[1725976069545,1.06937,2337.7,2337.0,0.3907]
[1725976069846,0.4278,2337.5,2337.2,0.42783]
[1725976070047,0.42778,2337.5,2337.0,0.3907]
[1725976070235,11.14310579,2337.6,2337.3,0.42781]
[1725976070438,0.4278,2337.4,2337.1,0.42785]
[1725976070637,10.86191645,2337.7,2337.0,0.42786]
[1725976070837,10.86191645,2337.7,2336.3,0.215]
[1725976070838,3.29,2337.1,2336.3,0.215]
[1725976071038,0.4044,2337.0,2336.0,0.59848294]
[1725976071244,0.42789,2336.9,2336.0,0.59848294]
[1725976071447,11.50105831,2337.0,2336.6,0.42794]
[1725976071648,10.66877831,2336.8,2336.6,0.42794]
[1725976071857,10.66877831,2336.8,2336.5,0.42795]
[1725976072050,10.66877831,2336.9,2336.6,0.42795]
[1725976072252,0.83228,2337.0,2336.6,0.42795]
[1725976072443,10.9093811,2336.9,2336.5,0.42795]
[1725976073438,7.5692,2336.8,2335.6,0.215]
[1725976073642,3.29,2336.4,2335.5,0.3697]
[1725976073845,0.3933,2336.3,2335.8,0.42808]
[1725976074042,0.42802,2336.2,2335.7,0.4281]
[1725976074445,10.80330488,2336.1,2335.7,0.4281]
[1725976074840,10.80330488,2336.1,2335.8,0.42809]
[1725976075042,10.80330488,2336.1,2335.7,0.4281]
[1725976075336,10.80330488,2336.1,2335.5,0.3697]
[1725976075550,10.80330488,2336.1,2335.8,0.42809]
[1725976075848,10.80330488,2336.1,2335.8,0.42807]
[1725976076049,10.80330488,2336.1,2335.8,0.42808]
[1725976076246,3.29,2336.1,2335.5,0.42815]
[1725976076452,3.29,2336.1,2335.3,0.3834]
[1725976076453,3.6646,2336.1,2335.3,0.3834]
[1725976076656,10.70206461,2336.0,2335.3,0.3834]
[1725976076947,11.13013461,2336.0,2335.6,0.42812]
[1725976077148,10.70206461,2336.0,2335.0,1.4629]
[1725976077349,10.70206461,2336.0,2335.0,0.3923]
[1725976077545,10.70206461,2336.0,2335.7,0.4281]
[1725976077751,10.70206461,2336.0,2335.2,1.07051]
[1725976077952,10.70206461,2336.0,2335.7,0.4281]
[1725976078447,10.70206461,2336.0,2335.2,1.07051]
[1725976078749,10.70206461,2336.0,2335.9,0.42807]
[1725976079138,10.70206461,2336.0,2335.9,4.70887]
[1725976079337,0.3933,2336.3,2336.1,0.42803]
[1725976079543,0.3933,2336.3,2335.6,1.46529]
[1725976079841,10.92178724,2336.2,2336.0,0.42804]
[1725976080044,10.92178724,2336.2,2336.1,0.42804]
[1725976080247,10.92178724,2336.2,2336.1,4.70884]
[1725976080450,0.79565,2336.6,2336.3,0.42799]
[1725976080752,0.79565,2336.6,2335.6,0.7892]
[1725976080753,10.86016215,2336.5,2335.6,0.7892]
[1725976080950,11.28814215,2336.5,2336.2,0.42801]
[1725976081251,11.28814215,2336.5,2335.7,1.07028]
[1725976081252,0.42798,2336.4,2336.1,0.42803]
[1725976081550,10.55693739,2336.3,2335.8,40.8]
[1725976081853,10.55693739,2336.3,2336.2,0.42802]
[1725976082042,4.08565,2336.6,2335.8,41.87021]
[1725976082043,0.3677,2336.6,2336.5,0.42796]
[1725976082244,0.82623,2336.7,2336.4,0.42797]
[1725976082456,0.82623,2336.7,2335.9,1.07016]
[1725976082457,10.76078796,2336.5,2335.9,1.07015]
[1725976082644,10.76078796,2336.6,2336.5,0.42796]
[1725976082851,0.3983,2336.7,2336.5,0.42796]
[1725976083051,0.3983,2336.7,2336.6,0.42795]
[1725976083551,10.92444319,2336.7,2336.6,0.42795]
[1725976084451,10.52614319,2336.7,2336.6,0.42795]
[1725976084644,4.951,2337.1,2336.9,0.42788]
[1725976084953,0.4017,2337.1,2337.0,0.42787]
[1725976085455,11.29139925,2337.1,2337.0,0.42787]
[1725976085950,15.99845925,2337.1,2336.3,0.3988]
[1725976086151,11.29139925,2337.1,2337.0,0.42787]
[1725976086849,11.29139925,2337.1,2336.6,1.06985]
[1725976086850,11.29139925,2337.1,2336.9,0.42787]
[1725976087050,11.71925925,2337.1,2336.9,0.42787]
[1725976087652,0.42788,2337.0,2336.8,0.4279]
[1725976087952,11.29139925,2337.1,2336.6,0.42793]
[1725976088147,0.42794,2336.7,2336.2,0.7629]
[1725976088356,0.42795,2336.6,2336.4,0.42798]
[1725976088546,3.29,2336.9,2336.3,1.07001]
[1725976088749,3.29,2336.9,2336.4,0.42797]
[1725976089062,10.66600493,2336.8,2336.5,0.42796]
[1725976089253,10.66600493,2336.8,2336.4,0.42797]
[1725976089454,0.42797,2336.5,2336.3,0.42799]
[1725976089650,0.42795,2336.6,2336.4,0.42798]
[1725976089954,0.42793,2336.7,2336.5,0.42796]
[1725976090258,0.42795,2336.6,2336.4,0.42798]
[1725976090958,0.42797,2336.5,2336.3,0.42799]
[1725976091154,11.73580493,2336.8,2335.9,1.07019]
[1725976091355,0.42797,2336.5,2336.3,0.42799]
[1725976091953,0.42798,2336.5,2336.3,0.42799]
[1725976092458,11.08189017,2336.4,2335.8,0.3651]
[1725976092662,3.29,2336.1,2335.5,0.99747039]
[1725976092850,3.71811,2335.8,2335.6,0.42813]
[1725976093158,11.34049481,2335.7,2335.5,0.42814]
[1725976093360,11.30217481,2335.7,2335.1,5.15255]
[1725976093558,11.30217481,2335.7,2335.6,0.42813]
[1725976094059,10.91237481,2335.7,2335.0,1.47387]
[1725976094260,3.29,2335.6,2334.8,4.082]
[1725976094458,0.42817,2335.4,2335.1,0.42821]
[1725976094657,11.98269481,2335.7,2335.0,0.42823]
[1725976094658,3.71819,2335.3,2335.0,0.42823]
[1725976094853,3.71819,2335.3,2334.6,0.38]
[1725976094854,0.4282,2335.2,2334.9,0.42825]
[1725976095066,3.29,2335.3,2334.6,0.38]
[1725976095361,12.68576924,2335.6,2335.0,0.42824]
[1725976095362,10.54330919,2335.1,2335.0,0.42824]
[1725976095665,10.97146919,2335.5,2335.2,0.4282]
[1725976095963,3.29,2335.6,2334.6,1.45075]
[1725976095964,0.42814,2335.6,2335.3,0.42818]
[1725976096457,0.42819,2335.3,2335.0,0.42824]
[1725976096660,0.42819,2335.3,2334.6,0.38]
[1725976096854,0.42819,2335.3,2335.0,0.42823]
[1725976096855,10.7893985,2335.2,2335.0,0.42823]
[1725976097058,10.7893985,2335.2,2335.1,0.42822]
[1725976097359,4.98202,2335.7,2335.3,0.42817]
[1725976097552,0.3809,2335.7,2335.0,0.42823]
[1725976097861,10.82732115,2335.4,2334.8,4.082]
[1725976098049,0.4282,2335.3,2334.9,0.42825]
[1725976098252,0.4282,2335.3,2335.0,0.42823]
[1725976098447,10.45035193,2335.2,2335.0,0.42823]
[1725976098659,10.45035193,2335.2,2335.0,0.42824]
[1725976098867,10.45035193,2335.2,2335.1,0.42822]
[1725976099261,10.977971,2335.3,2335.0,0.42823]
[1725976099470,10.549781,2335.3,2335.1,0.42822]
[1725976099763,0.4282,2335.2,2334.9,0.42825]
[1725976099957,0.3649,2335.1,2334.6,0.80831]
[1725976100157,11.342901,2335.1,2334.4,5.15285]
[1725976100465,11.342901,2335.1,2335.0,0.42824]
[1725976100466,0.3649,2335.1,2335.0,0.42824]
[1725976100862,0.79396,2335.5,2335.2,0.4282]
[1725976101161,10.92993297,2335.2,2334.7,1.07074]
[1725976101371,10.92993297,2335.2,2335.1,0.42821]
[1725976101557,0.3658,2335.5,2335.3,0.42817]
[1725976101856,10.92993297,2335.4,2335.3,0.42817]
[1725976102062,10.92993297,2335.4,2335.3,4.70977]
[1725976102860,10.92993297,2335.4,2334.8,0.3855]
[1725976103067,11.35810297,2335.4,2335.1,0.42821]
[1725976103264,11.35811297,2335.4,2335.1,0.4282]
[1725976103464,10.92993297,2335.4,2335.3,0.42818]
[1725976103760,0.42818,2335.3,2335.1,0.42821]
[1725976104065,3.6558,2335.5,2334.8,0.3855]
[1725976104066,0.42823,2335.1,2334.8,0.3855]
[1725976104255,0.42823,2335.1,2334.9,0.42825]
[1725976104562,0.42823,2335.1,2334.8,0.81376]
[1725976104858,4.36049,2335.3,2334.3,1.07089]
[1725976105055,10.88759924,2335.0,2334.4,1.07088]
[1725976105260,0.80116,2334.9,2334.3,1.44141]
[1725976105457,0.80116,2334.9,2334.7,0.42829]
[1725976105865,0.3729,2334.9,2334.3,1.44141]
[1725976106161,0.3729,2334.9,2334.8,0.42828]
[1725976106466,0.42819,2335.3,2334.7,1.07074]
[1725976106655,0.79519,2335.3,2335.0,0.42822]
[1725976106850,10.64543027,2335.2,2334.9,0.42825]
[1725976107056,0.42822,2335.1,2334.9,0.42825]
[1725976107361,0.42824,2335.0,2334.8,0.42827]
[1725976107556,10.64543027,2335.2,2334.7,0.42828]
[1725976107557,11.71596027,2335.2,2334.7,0.42828]
[1725976107761,0.42832,2334.6,2334.3,0.3705]
[1725976107963,4.36064,2335.0,2334.3,0.3705]
[1725976108264,4.36064,2335.0,2334.6,0.4283]
[1725976108265,10.45699158,2334.9,2334.6,0.4283]
[1725976108456,0.42828,2334.8,2334.6,0.4283]
[1725976108768,4.36064,2335.0,2334.7,0.42829]
[1725976109065,10.45699158,2334.7,2334.6,0.4283]
[1725976109360,10.88527158,2334.8,2334.7,0.42829]
[1725976109361,0.42828,2334.8,2334.7,0.42829]
[1725976109566,0.42828,2334.8,2334.6,0.4283]
[1725976109759,10.95180234,2334.7,2334.6,0.4283]
[1725976110065,0.42828,2334.8,2334.3,1.44141]
[1725976110265,0.42831,2334.7,2334.5,0.42833]
[1725976110472,0.42831,2334.6,2334.5,0.42833]
[1725976110655,8.64396,2334.7,2333.9,40.8]
[1725976110959,3.71836,2334.4,2333.7,1.46859]
[1725976111160,0.395,2334.5,2334.4,0.42835]
[1725976111866,0.42836,2334.4,2334.2,0.42838]
[1725976112166,0.395,2334.5,2334.3,0.42836]
[1725976112370,0.395,2334.5,2334.4,0.42835]
[1725976112863,1.46209,2335.1,2334.6,0.42831]
[1725976112864,0.42828,2334.8,2334.6,0.42831]
[1725976113066,1.46209,2335.1,2334.5,0.3828]
[1725976113067,0.3915,2335.1,2334.5,0.3828]
[1725976113264,10.9596974,2334.8,2334.5,0.3828]
[1725976113466,14.6499974,2335.0,2334.2,1.43815]
[1725976113671,0.42827,2334.9,2334.7,0.42829]
[1725976113967,11.3879674,2334.9,2334.7,0.42829]
[1725976114159,0.42828,2334.8,2334.7,0.42829]
[1725976114463,11.3879574,2334.9,2334.7,0.42828]
[1725976114662,10.9596974,2334.9,2334.8,0.42828]
[1725976114867,3.2703818,2336.7,2334.5,1.07082]
[1725976114868,4.0744,2335.3,2334.5,1.07083]
[1725976115065,4.0744,2335.3,2334.7,1.07073]
[1725976115066,0.3841,2335.3,2334.7,1.07073]
[1725976115262,0.3841,2335.3,2334.5,1.07083]
[1725976115263,0.42822,2335.1,2334.9,0.42824]
[1725976115659,0.42822,2335.1,2335.0,0.42824]
[1725976115859,11.3110765,2335.2,2335.0,0.42824]
[1725976116062,10.8828565,2335.2,2334.5,1.07083]
[1725976116264,0.42825,2335.0,2334.8,0.42827]
[1725976116463,0.42827,2334.9,2334.4,5.15286]
[1725976116668,10.90802667,2334.9,2334.8,0.42828]
[1725976116966,0.42825,2335.0,2334.5,1.07082]
[1725976117163,1.07051,2335.2,2334.9,0.42825]
[1725976117471,11.05879553,2335.1,2334.5,1.07082]
[1725976117662,0.42825,2335.0,2334.8,0.42826]
[1725976117860,11.70113553,2335.1,2334.7,0.42829]
[1725976118068,0.42826,2334.9,2334.8,0.42828]
[1725976118265,0.42825,2335.0,2334.8,0.42828]
[1725976118471,0.42823,2335.1,2334.9,0.42824]
[1725976118766,10.93631743,2335.0,2334.9,0.42825]
[1725976119265,0.3841,2335.3,2334.9,4.2824]
[1725976119472,0.8123,2335.3,2335.1,0.42822]
[1725976119665,0.3841,2335.3,2335.2,0.4282]
[1725976119875,4.36034,2335.6,2334.9,0.3897]
[1725976120172,10.99354813,2335.3,2335.1,0.42821]
[1725976120366,10.73476925,2335.4,2334.9,0.3897]
[1725976120670,11.16297925,2335.2,2335.0,0.42823]
[1725976120973,10.73476925,2335.3,2335.2,0.4282]
[1725976121169,10.73476925,2335.4,2335.1,0.42821]
[1725976121370,0.42824,2335.0,2334.9,0.81796]
[1725976121671,1.07051,2335.2,2334.5,1.07083]
[1725976121865,1.07051,2335.2,2334.5,0.7542]
[1725976122062,10.49750831,2335.1,2334.5,1.82502]
[1725976122269,0.42825,2335.0,2334.8,0.42827]
[1725976122467,10.49750831,2335.1,2334.5,0.7542]
[1725976122772,11.04195235,2334.9,2334.6,0.42831]
[1725976122977,0.42827,2334.9,2334.6,0.42831]
[1725976123174,3.29,2335.3,2334.8,0.42827]
[1725976123368,3.29,2335.3,2334.7,0.42828]
[1725976123369,0.42824,2335.0,2334.7,0.42828]
[1725976123680,11.38652025,2335.0,2334.7,0.42828]
[1725976123973,0.42825,2335.0,2334.8,0.42827]
[1725976124171,4.3605,2335.3,2334.5,0.3884]
[1725976124365,11.31179521,2334.9,2334.5,0.3884]
[1725976124565,0.42826,2334.9,2334.6,0.4283]
[1725976124768,4.3605,2335.3,2334.8,0.42827]
[1725976125168,10.88353521,2335.0,2334.9,0.42826]
[1725976125369,11.31173521,2335.2,2334.5,1.45921]
[1725976125570,0.4282,2335.2,2334.9,0.42824]
[1725976125870,1.46499,2335.5,2335.0,0.42824]
[1725976126171,0.42821,2335.2,2334.5,1.45921]
[1725976126372,10.48884167,2335.4,2334.5,0.3884]
[1725976126582,0.3946,2335.5,2335.2,0.42819]
[1725976126876,0.3946,2335.5,2335.3,0.42818]
[1725976127069,1.09012726,2335.6,2335.5,0.42815]
[1725976127270,0.42816,2335.5,2335.2,0.42819]
[1725976127472,0.42812,2335.7,2335.4,0.42817]
[1725976127776,0.42812,2335.7,2335.6,0.42813]
[1725976127777,10.94848767,2335.7,2335.6,0.42813]
[1725976127978,1.6351909,2335.8,2335.1,41.1847]
[1725976128170,0.42812,2335.7,2335.4,0.42816]
[1725976128477,1.6351909,2335.8,2335.2,5.35211]
[1725976128668,1.6351909,2335.8,2335.7,0.42811]
[1725976128868,1.6351909,2335.8,2335.3,4.2816]
[1725976129067,1.6351909,2335.8,2335.7,0.42811]
[1725976129367,1.6351909,2335.8,2335.1,45.2667]
[1725976129567,0.42812,2335.7,2335.1,41.1847]
[1725976129764,0.42812,2335.7,2335.4,0.42815]
[1725976129976,1.6351909,2335.8,2335.5,0.42814]
[1725976130274,0.42812,2335.7,2335.1,41.1847]
[1725976130473,0.3878,2335.7,2335.3,0.42817]
[1725976130669,0.42814,2335.6,2335.3,0.42817]
[1725976130974,0.81592,2335.7,2335.1,41.1847]
[1725976131172,0.42812,2335.7,2335.5,0.42814]
[1725976131378,1.6351909,2335.8,2335.2,4.7098]
[1725976131575,2.0632909,2335.8,2335.6,0.42813]
[1725976131874,3.29,2335.9,2335.1,45.2667]
[1725976132075,0.42815,2335.5,2335.1,41.1847]
[1725976132279,0.42814,2335.6,2335.1,41.1847]
[1725976132482,0.42815,2335.5,2335.1,41.1847]
[1725976132678,3.29,2335.9,2335.1,0.3847]
[1725976132982,1.07033,2335.6,2335.2,0.4282]
[1725976133178,0.42813,2335.6,2335.4,0.42816]
[1725976133376,10.87908264,2335.5,2335.1,0.3847]